[Event "Early-Titled-Tuesday-Blitz-April-23-2024"]
[Site "Chess.com"]
[Date "2024.04.23"]
[Round "9"]
[White "UK_23"]
[Black "Aleksandar-Topalov"]
[Result "1-0"]
[WhiteElo "2496"]
[BlackElo "2386"]
[TimeControl "180+1"]
[EndTime "9:48:22 PDT"]
[Termination "UK_23 won by resignation"]

1. e4 {[%clk 0:03:00.9]} 1... e6 {[%clk 0:02:59.8]} 2. d4 {[%clk 0:03:01]} 2...
d5 {[%clk 0:02:59]} 3. e5 {[%clk 0:03:01.6]} 3... Ne7 {[%clk 0:02:58.8]} 4. Nf3
{[%clk 0:03:01.3]} 4... Qd7 {[%clk 0:02:58.7]} 5. a4 {[%clk 0:03:00.1]} 5... a5
{[%clk 0:02:58.2]} 6. Bb5 {[%clk 0:02:59.2]} 6... c6 {[%clk 0:02:58.1]} 7. Bd3
{[%clk 0:02:59.1]} 7... b6 {[%clk 0:02:58.4]} 8. c4 {[%clk 0:02:57.7]} 8... dxc4
{[%clk 0:02:55.3]} 9. Bxc4 {[%clk 0:02:57.6]} 9... Ba6 {[%clk 0:02:55.4]} 10. b3
{[%clk 0:02:57.4]} 10... Nd5 {[%clk 0:02:55.1]} 11. O-O {[%clk 0:02:56.8]} 11...
Be7 {[%clk 0:02:55.4]} 12. h4 {[%clk 0:02:53.8]} 12... h6 {[%clk 0:02:51.6]} 13.
h5 {[%clk 0:02:54.1]} 13... O-O {[%clk 0:02:51.5]} 14. Qe2 {[%clk 0:02:49.3]}
14... c5 {[%clk 0:02:43.2]} 15. Rd1 {[%clk 0:02:37]} 15... cxd4 {[%clk
0:02:39.9]} 16. Nxd4 {[%clk 0:02:37.2]} 16... Rd8 {[%clk 0:02:36.2]} 17. Nb5
{[%clk 0:02:25.8]} 17... Nc6 {[%clk 0:02:28]} 18. N1c3 {[%clk 0:02:17.4]} 18...
Ncb4 {[%clk 0:02:27.2]} 19. Ne4 {[%clk 0:02:12.6]} 19... Qc6 {[%clk 0:02:08.4]}
20. Nd4 {[%clk 0:02:05]} 20... Qb7 {[%clk 0:02:04.5]} 21. Qg4 {[%clk 0:01:56]}
21... Kh8 {[%clk 0:02:00.3]} 22. Qf3 {[%clk 0:01:26.4]} 22... Kg8 {[%clk
0:01:41]} 23. Qg4 {[%clk 0:00:52.8]} 23... Kh8 {[%clk 0:01:39.6]} 24. Bb2 {[%clk
0:00:50.2]} 24... Rac8 {[%clk 0:01:38.7]} 25. Rac1 {[%clk 0:00:47.3]} 25... Na2
{[%clk 0:01:12.5]} 26. Ra1 {[%clk 0:00:41.7]} 26... Nab4 {[%clk 0:01:00.3]} 27.
Nd6 {[%clk 0:00:36.9]} 27... Bxd6 {[%clk 0:00:45.4]} 28. exd6 {[%clk 0:00:37.3]}
28... e5 {[%clk 0:00:40.3]} 29. Nf5 {[%clk 0:00:35.3]} 29... f6 {[%clk
0:00:38.8]} 30. Bxd5 {[%clk 0:00:30.2]} 30... Nxd5 {[%clk 0:00:38]} 31. Rxd5
{[%clk 0:00:30.9]} 1-0

[Event "Early-Titled-Tuesday-Blitz-April-23-2024"]
[Site "Chess.com"]
[Date "2024.04.23"]
[Round "9"]
[White "dvglko"]
[Black "ChessMA48"]
[Result "1-0"]
[WhiteElo "2441"]
[BlackElo "2277"]
[TimeControl "180+1"]
[EndTime "9:48:29 PDT"]
[Termination "dvglko won by checkmate"]

1. e4 {[%clk 0:03:00.9]} 1... e5 {[%clk 0:02:48.2]} 2. Nf3 {[%clk 0:03:01.1]}
2... Nc6 {[%clk 0:02:47.2]} 3. Bb5 {[%clk 0:03:01.7]} 3... a6 {[%clk 0:02:47.2]}
4. Ba4 {[%clk 0:03:02.1]} 4... Nf6 {[%clk 0:02:47.6]} 5. O-O {[%clk 0:03:02.2]}
5... Be7 {[%clk 0:02:48.1]} 6. Re1 {[%clk 0:03:02.6]} 6... b5 {[%clk 0:02:48.7]}
7. Bb3 {[%clk 0:03:03.2]} 7... d6 {[%clk 0:02:49.4]} 8. c3 {[%clk 0:03:03.2]}
8... O-O {[%clk 0:02:49.9]} 9. h3 {[%clk 0:03:03.3]} 9... Bb7 {[%clk 0:02:50.5]}
10. d4 {[%clk 0:02:53.3]} 10... Re8 {[%clk 0:02:50.5]} 11. Nbd2 {[%clk 0:02:49]}
11... Bf8 {[%clk 0:02:50.6]} 12. Nf1 {[%clk 0:02:48.9]} 12... h6 {[%clk
0:02:50.7]} 13. Ng3 {[%clk 0:02:48.9]} 13... Qd7 {[%clk 0:02:49.5]} 14. Nh4
{[%clk 0:02:43.3]} 14... Rad8 {[%clk 0:02:47.9]} 15. Nhf5 {[%clk 0:02:29.7]}
15... exd4 {[%clk 0:02:42.5]} 16. cxd4 {[%clk 0:02:25.2]} 16... Na5 {[%clk
0:02:36.7]} 17. Bc2 {[%clk 0:02:19.3]} 17... Bxe4 {[%clk 0:00:51.1]} 18. Bxe4
{[%clk 0:01:43.7]} 18... Nxe4 {[%clk 0:00:48.4]} 19. Rxe4 {[%clk 0:01:32.2]}
19... Rxe4 {[%clk 0:00:44.9]} 20. Nxh6+ {[%clk 0:01:31.4]} 20... gxh6 {[%clk
0:00:42.1]} 21. Nxe4 {[%clk 0:01:32.3]} 21... Qf5 {[%clk 0:00:39.5]} 22. Qd3
{[%clk 0:01:04.4]} 22... Re8 {[%clk 0:00:32.9]} 23. Qg3+ {[%clk 0:00:57.6]}
23... Kh8 {[%clk 0:00:23.9]} 24. f3 {[%clk 0:00:54.5]} 24... Bg7 {[%clk
0:00:13.3]} 25. Kh1 {[%clk 0:00:52.7]} 25... Nc4 {[%clk 0:00:11.2]} 26. b3
{[%clk 0:00:51.7]} 26... Bxd4 {[%clk 0:00:06.5]} 27. Rb1 {[%clk 0:00:51.1]}
27... Ne5 {[%clk 0:00:05.6]} 28. Bxh6 {[%clk 0:00:47.4]} 28... d5 {[%clk
0:00:05.3]} 29. Qg7# {[%clk 0:00:44.2]} 1-0

[Event "Early-Titled-Tuesday-Blitz-April-23-2024"]
[Site "Chess.com"]
[Date "2024.04.23"]
[Round "9"]
[White "KetiTsatsalashvili"]
[Black "Boxerandchessplayer"]
[Result "1-0"]
[WhiteElo "2429"]
[BlackElo "2239"]
[TimeControl "180+1"]
[EndTime "9:48:29 PDT"]
[Termination "KetiTsatsalashvili won by resignation"]

1. d4 {[%clk 0:03:00.9]} 1... d5 {[%clk 0:02:56.6]} 2. Nf3 {[%clk 0:03:00.6]}
2... e6 {[%clk 0:02:55.2]} 3. Bf4 {[%clk 0:02:59.6]} 3... Bd6 {[%clk 0:02:54.3]}
4. Bg3 {[%clk 0:02:59.3]} 4... Nf6 {[%clk 0:02:53.3]} 5. e3 {[%clk 0:02:59.4]}
5... O-O {[%clk 0:02:50.3]} 6. Nbd2 {[%clk 0:02:59.5]} 6... c5 {[%clk
0:02:50.8]} 7. c3 {[%clk 0:02:57.7]} 7... Qc7 {[%clk 0:02:50.6]} 8. Bd3 {[%clk
0:02:58]} 8... Nbd7 {[%clk 0:02:50.4]} 9. Bh4 {[%clk 0:02:49.9]} 9... e5 {[%clk
0:02:24.4]} 10. dxe5 {[%clk 0:02:45.1]} 10... Nxe5 {[%clk 0:02:11.4]} 11. Nxe5
{[%clk 0:02:41.1]} 11... Bxe5 {[%clk 0:02:12.3]} 12. Nf3 {[%clk 0:02:39.5]}
12... Ne4 {[%clk 0:02:03.3]} 13. Nxe5 {[%clk 0:02:21]} 13... Qxe5 {[%clk
0:02:04.2]} 14. Bg3 {[%clk 0:02:16.7]} 14... Nxg3 {[%clk 0:01:59.5]} 15. hxg3
{[%clk 0:02:14.8]} 15... h6 {[%clk 0:01:59.2]} 16. Rh5 {[%clk 0:02:03.2]} 16...
Qd6 {[%clk 0:01:51.3]} 17. Rxd5 {[%clk 0:02:01.6]} 17... Qb6 {[%clk 0:01:47.6]}
18. Qd2 {[%clk 0:01:53.1]} 18... Be6 {[%clk 0:01:45.3]} 19. Rd6 {[%clk
0:01:52.7]} 19... Qc7 {[%clk 0:01:41.9]} 20. O-O-O {[%clk 0:01:47.9]} 20... Bxa2
{[%clk 0:01:35.9]} 21. Bc2 {[%clk 0:01:45.3]} 21... c4 {[%clk 0:01:23.4]} 22.
Qd4 {[%clk 0:01:21.4]} 22... b6 {[%clk 0:00:20.1]} 23. Rh1 {[%clk 0:00:43.5]}
23... Bb3 {[%clk 0:00:15]} 24. Rdxh6 {[%clk 0:00:32.1]} 24... gxh6 {[%clk
0:00:13.4]} 25. Qg4+ {[%clk 0:00:30.8]} 1-0

[Event "Early-Titled-Tuesday-Blitz-April-23-2024"]
[Site "Chess.com"]
[Date "2024.04.23"]
[Round "9"]
[White "Maxfan2008"]
[Black "platy3"]
[Result "1-0"]
[WhiteElo "2657"]
[BlackElo "2897"]
[TimeControl "180+1"]
[EndTime "9:48:31 PDT"]
[Termination "Maxfan2008 won on time"]

1. d4 {[%clk 0:02:49.6]} 1... Nf6 {[%clk 0:02:59.6]} 2. c4 {[%clk 0:02:49.2]}
2... e6 {[%clk 0:02:59.5]} 3. Nf3 {[%clk 0:02:48.8]} 3... d5 {[%clk 0:02:59.2]}
4. e3 {[%clk 0:02:47.2]} 4... a6 {[%clk 0:02:58.7]} 5. Nbd2 {[%clk 0:02:45.3]}
5... b6 {[%clk 0:02:58.6]} 6. b3 {[%clk 0:02:42.2]} 6... Bb7 {[%clk 0:02:58.4]}
7. Bb2 {[%clk 0:02:40]} 7... Bd6 {[%clk 0:02:57.9]} 8. Bd3 {[%clk 0:02:39.4]}
8... O-O {[%clk 0:02:57.7]} 9. O-O {[%clk 0:02:40]} 9... Nbd7 {[%clk 0:02:57.8]}
10. Ne5 {[%clk 0:02:38.9]} 10... c5 {[%clk 0:02:54.3]} 11. Qe2 {[%clk
0:02:34.1]} 11... Qe7 {[%clk 0:02:44.7]} 12. cxd5 {[%clk 0:02:32.4]} 12... exd5
{[%clk 0:02:40.1]} 13. Ndf3 {[%clk 0:02:31.3]} 13... Ne4 {[%clk 0:02:37.8]} 14.
Nxd7 {[%clk 0:02:28.6]} 14... Qxd7 {[%clk 0:02:37.8]} 15. a4 {[%clk 0:02:26.3]}
15... Rfe8 {[%clk 0:02:23.7]} 16. Rfc1 {[%clk 0:02:21.6]} 16... Qe7 {[%clk
0:02:12.5]} 17. Rc2 {[%clk 0:02:18.4]} 17... Ng5 {[%clk 0:01:43.7]} 18. Nxg5
{[%clk 0:02:09.2]} 18... Qxg5 {[%clk 0:01:43.5]} 19. Qf3 {[%clk 0:02:09.6]}
19... Re7 {[%clk 0:01:27.6]} 20. Qf5 {[%clk 0:01:50.8]} 20... Qh6 {[%clk
0:01:20.4]} 21. g3 {[%clk 0:01:47.7]} 21... g6 {[%clk 0:01:20.2]} 22. Qg4 {[%clk
0:01:40]} 22... Rf8 {[%clk 0:01:02.5]} 23. Bf1 {[%clk 0:01:25.2]} 23... f5
{[%clk 0:01:01.6]} 24. Qf3 {[%clk 0:01:24.3]} 24... g5 {[%clk 0:00:57.2]} 25.
Bg2 {[%clk 0:01:22.1]} 25... f4 {[%clk 0:00:54.1]} 26. exf4 {[%clk 0:01:20.7]}
26... gxf4 {[%clk 0:00:49.2]} 27. Qg4+ {[%clk 0:01:18.8]} 27... Rg7 {[%clk
0:00:43.7]} 28. Qh3 {[%clk 0:01:18.6]} 28... Qg6 {[%clk 0:00:39.2]} 29. dxc5
{[%clk 0:01:10.9]} 29... Qxc2 {[%clk 0:00:03.6]} 30. Bxg7 {[%clk 0:01:09.7]}
30... Bxc5 {[%clk 0:00:04.1]} 31. Bxf8 {[%clk 0:01:04.9]} 31... Kxf8 {[%clk
0:00:04.2]} 32. Qh6+ {[%clk 0:00:59.7]} 1-0

[Event "Early-Titled-Tuesday-Blitz-April-23-2024"]
[Site "Chess.com"]
[Date "2024.04.23"]
[Round "9"]
[White "Mikhail_Golubev"]
[Black "Kotofeyca"]
[Result "0-1"]
[WhiteElo "2588"]
[BlackElo "2518"]
[TimeControl "180+1"]
[EndTime "9:48:33 PDT"]
[Termination "Kotofeyca won on time"]

1. e4 {[%clk 0:00:40.3]} 1... c5 {[%clk 0:02:57.4]} 2. Nf3 {[%clk 0:00:39.6]}
2... d6 {[%clk 0:02:57.4]} 3. d4 {[%clk 0:00:39.9]} 3... cxd4 {[%clk 0:02:58.3]}
4. Nxd4 {[%clk 0:00:40.4]} 4... Nf6 {[%clk 0:02:58.8]} 5. Nc3 {[%clk 0:00:41]}
5... a6 {[%clk 0:02:59.4]} 6. Bc4 {[%clk 0:00:41.3]} 6... e6 {[%clk 0:02:59.4]}
7. Bb3 {[%clk 0:00:41.8]} 7... Be7 {[%clk 0:02:56.4]} 8. f4 {[%clk 0:00:40.1]}
8... b5 {[%clk 0:02:56.4]} 9. e5 {[%clk 0:00:39.5]} 9... dxe5 {[%clk 0:02:49]}
10. fxe5 {[%clk 0:00:40.4]} 10... Nd5 {[%clk 0:02:44.5]} 11. Nxd5 {[%clk
0:00:32.2]} 11... exd5 {[%clk 0:02:40.8]} 12. Qf3 {[%clk 0:00:31.8]} 12... Be6
{[%clk 0:02:34.2]} 13. Nxe6 {[%clk 0:00:30.3]} 13... fxe6 {[%clk 0:02:33.6]} 14.
O-O {[%clk 0:00:23.8]} 14... Kd7 {[%clk 0:02:23.5]} 15. a4 {[%clk 0:00:22.5]}
15... Rf8 {[%clk 0:02:12.4]} 16. Qg4 {[%clk 0:00:22.6]} 16... Qb6+ {[%clk
0:02:10.1]} 17. Be3 {[%clk 0:00:22.6]} 17... Qxe3+ {[%clk 0:02:09.7]} 18. Kh1
{[%clk 0:00:23.3]} 18... Qg5 {[%clk 0:01:42]} 19. Qxg5 {[%clk 0:00:12.5]} 19...
Rxf1+ {[%clk 0:01:40.8]} 20. Rxf1 {[%clk 0:00:13.1]} 20... Bxg5 {[%clk
0:01:41.4]} 21. Rf7+ {[%clk 0:00:13.5]} 21... Be7 {[%clk 0:01:37.8]} 22. Rxg7
{[%clk 0:00:13.9]} 22... h5 {[%clk 0:01:37.9]} 23. Rh7 {[%clk 0:00:12]} 23... h4
{[%clk 0:01:35.3]} 24. g4 {[%clk 0:00:10.7]} 24... Nc6 {[%clk 0:01:30.9]} 25. g5
{[%clk 0:00:08.4]} 25... Nxe5 {[%clk 0:01:30.8]} 26. c3 {[%clk 0:00:08.2]} 26...
Rg8 {[%clk 0:01:28.1]} 27. Rh5 {[%clk 0:00:07.4]} 27... Bxg5 {[%clk 0:01:20.9]}
28. axb5 {[%clk 0:00:07.5]} 28... axb5 {[%clk 0:01:20.3]} 29. Kg2 {[%clk
0:00:08.1]} 29... Bc1+ {[%clk 0:01:18.1]} 30. Kf1 {[%clk 0:00:08.4]} 30... Kd6
{[%clk 0:01:17.1]} 31. Rxh4 {[%clk 0:00:06.5]} 31... Bxb2 {[%clk 0:01:17.4]} 32.
Rh3 {[%clk 0:00:06.6]} 32... Rc8 {[%clk 0:01:12.8]} 33. Bd1 {[%clk 0:00:03.2]}
33... Rxc3 {[%clk 0:01:12.5]} 34. Rh6 {[%clk 0:00:03.1]} 34... Rc1 {[%clk
0:01:11.8]} 35. Ke2 {[%clk 0:00:03.2]} 35... b4 {[%clk 0:01:09.1]} 36. h4 {[%clk
0:00:03.1]} 36... Ng4 {[%clk 0:01:06.7]} 37. h5 {[%clk 0:00:03.1]} 37... Nxh6
{[%clk 0:01:06.5]} 38. Kd2 {[%clk 0:00:02.6]} 38... Rc7 {[%clk 0:01:05.1]} 0-1

[Event "Early-Titled-Tuesday-Blitz-April-23-2024"]
[Site "Chess.com"]
[Date "2024.04.23"]
[Round "9"]
[White "Airquake"]
[Black "Nemegejas"]
[Result "0-1"]
[WhiteElo "2659"]
[BlackElo "2814"]
[TimeControl "180+1"]
[EndTime "9:48:34 PDT"]
[Termination "Nemegejas won on time"]

1. b3 {[%clk 0:02:57.7]} 1... e5 {[%clk 0:02:58.8]} 2. Bb2 {[%clk 0:02:58.6]}
2... d6 {[%clk 0:02:58.5]} 3. e3 {[%clk 0:02:56.1]} 3... g6 {[%clk 0:02:56.6]}
4. Nf3 {[%clk 0:02:55.8]} 4... Bg7 {[%clk 0:02:56.9]} 5. Be2 {[%clk 0:02:55.9]}
5... c5 {[%clk 0:02:53.8]} 6. d4 {[%clk 0:02:54.4]} 6... exd4 {[%clk 0:02:49]}
7. exd4 {[%clk 0:02:55.3]} 7... Nc6 {[%clk 0:02:49]} 8. O-O {[%clk 0:02:55.1]}
8... Nge7 {[%clk 0:02:48.7]} 9. c3 {[%clk 0:02:35.9]} 9... cxd4 {[%clk
0:02:46.8]} 10. cxd4 {[%clk 0:02:35.6]} 10... O-O {[%clk 0:02:44.4]} 11. Nc3
{[%clk 0:02:35.3]} 11... d5 {[%clk 0:02:33.5]} 12. Na4 {[%clk 0:02:30.5]} 12...
Bg4 {[%clk 0:02:28]} 13. h3 {[%clk 0:02:27.6]} 13... Bxf3 {[%clk 0:02:27.7]} 14.
Bxf3 {[%clk 0:02:28.5]} 14... Nf5 {[%clk 0:02:27.5]} 15. Nc3 {[%clk 0:02:12.8]}
15... Ncxd4 {[%clk 0:02:14.5]} 16. Bxd5 {[%clk 0:02:10.2]} 16... Qa5 {[%clk
0:01:49.7]} 17. Bxb7 {[%clk 0:01:36.5]} 17... Rad8 {[%clk 0:01:47.8]} 18. Rc1
{[%clk 0:00:52.3]} 18... Rfe8 {[%clk 0:01:02.7]} 19. Ne4 {[%clk 0:00:32.3]}
19... Qb5 {[%clk 0:00:57.3]} 20. Bxd4 {[%clk 0:00:17.1]} 20... Nxd4 {[%clk
0:00:45.3]} 21. Bc6 {[%clk 0:00:05.7]} 21... Nxc6 {[%clk 0:00:33.6]} 22. Qg4
{[%clk 0:00:05.7]} 22... f5 {[%clk 0:00:28.4]} 23. Nf6+ {[%clk 0:00:02.2]} 23...
Bxf6 {[%clk 0:00:27.9]} 0-1

[Event "Early-Titled-Tuesday-Blitz-April-23-2024"]
[Site "Chess.com"]
[Date "2024.04.23"]
[Round "9"]
[White "praveenb2002"]
[Black "RodTwinkz"]
[Result "1-0"]
[WhiteElo "2890"]
[BlackElo "2697"]
[TimeControl "180+1"]
[EndTime "9:48:36 PDT"]
[Termination "praveenb2002 won on time"]

1. c4 {[%clk 0:03:00.9]} 1... Nf6 {[%clk 0:02:59.7]} 2. Nc3 {[%clk 0:02:59.6]}
2... g6 {[%clk 0:03:00]} 3. g3 {[%clk 0:02:58.2]} 3... Bg7 {[%clk 0:03:00]} 4.
Bg2 {[%clk 0:02:58.5]} 4... O-O {[%clk 0:02:59.8]} 5. d4 {[%clk 0:02:58.7]} 5...
c5 {[%clk 0:02:57.1]} 6. d5 {[%clk 0:02:56.1]} 6... d6 {[%clk 0:02:56.9]} 7. Nf3
{[%clk 0:02:56.5]} 7... Na6 {[%clk 0:02:57]} 8. O-O {[%clk 0:02:54.4]} 8... Nc7
{[%clk 0:02:57.2]} 9. e4 {[%clk 0:02:50.5]} 9... b5 {[%clk 0:02:50.1]} 10. cxb5
{[%clk 0:02:45.5]} 10... a6 {[%clk 0:02:49.8]} 11. bxa6 {[%clk 0:02:42.7]} 11...
Bxa6 {[%clk 0:02:49.4]} 12. Re1 {[%clk 0:02:43]} 12... Nd7 {[%clk 0:02:36.9]}
13. a4 {[%clk 0:02:31.8]} 13... Qb8 {[%clk 0:02:18.3]} 14. Qc2 {[%clk
0:02:31.3]} 14... Qb4 {[%clk 0:02:12.2]} 15. Bd2 {[%clk 0:02:24.9]} 15... Qb7
{[%clk 0:02:06.1]} 16. Rab1 {[%clk 0:02:23.5]} 16... Ne5 {[%clk 0:01:55.9]} 17.
Nxe5 {[%clk 0:02:19.1]} 17... Bxe5 {[%clk 0:01:56.8]} 18. b4 {[%clk 0:02:02.6]}
18... cxb4 {[%clk 0:01:48.7]} 19. Na2 {[%clk 0:02:02.8]} 19... Rfc8 {[%clk
0:00:58.4]} 20. Qd1 {[%clk 0:02:02.5]} 20... Bd3 {[%clk 0:00:44.9]} 21. Rxb4
{[%clk 0:01:58.6]} 21... Qa6 {[%clk 0:00:41.3]} 22. Bf1 {[%clk 0:01:48.1]} 22...
Ne8 {[%clk 0:00:30.8]} 23. Qb3 {[%clk 0:01:15]} 23... Bxf1 {[%clk 0:00:17.3]}
24. Rxf1 {[%clk 0:01:15.9]} 24... Qe2 {[%clk 0:00:12.5]} 25. Be3 {[%clk
0:00:58.5]} 25... Nf6 {[%clk 0:00:06.8]} 26. Nc1 {[%clk 0:00:52.5]} 26... Qf3
{[%clk 0:00:06.2]} 27. Bd2 {[%clk 0:00:37.5]} 1-0

[Event "Early-Titled-Tuesday-Blitz-April-23-2024"]
[Site "Chess.com"]
[Date "2024.04.23"]
[Round "9"]
[White "yaguigor"]
[Black "Matols"]
[Result "1-0"]
[WhiteElo "2582"]
[BlackElo "2367"]
[TimeControl "180+1"]
[EndTime "9:48:38 PDT"]
[Termination "yaguigor won on time"]

1. Nf3 {[%clk 0:02:48.7]} 1... d5 {[%clk 0:02:58.9]} 2. d4 {[%clk 0:02:48.2]}
2... Nf6 {[%clk 0:02:59.4]} 3. c4 {[%clk 0:02:47.8]} 3... e6 {[%clk 0:02:58.7]}
4. Nc3 {[%clk 0:02:47.9]} 4... a6 {[%clk 0:02:57.6]} 5. c5 {[%clk 0:02:45]} 5...
b6 {[%clk 0:02:52]} 6. cxb6 {[%clk 0:02:43.6]} 6... cxb6 {[%clk 0:02:51.8]} 7.
Bf4 {[%clk 0:02:44.4]} 7... Bd6 {[%clk 0:02:50.5]} 8. e3 {[%clk 0:02:42.4]} 8...
O-O {[%clk 0:02:48.3]} 9. Bd3 {[%clk 0:02:41.5]} 9... Nc6 {[%clk 0:02:45]} 10.
Rc1 {[%clk 0:02:40.5]} 10... Bb7 {[%clk 0:02:43.9]} 11. O-O {[%clk 0:02:25.6]}
11... Rc8 {[%clk 0:02:32]} 12. Re1 {[%clk 0:02:21.2]} 12... b5 {[%clk
0:02:31.4]} 13. Ne5 {[%clk 0:02:09.1]} 13... Na5 {[%clk 0:02:30]} 14. Qf3 {[%clk
0:01:44.9]} 14... Nc4 {[%clk 0:02:21.4]} 15. Nxc4 {[%clk 0:01:34.8]} 15... bxc4
{[%clk 0:02:18.9]} 16. Bb1 {[%clk 0:01:34.6]} 16... Bxf4 {[%clk 0:02:13.5]} 17.
Qxf4 {[%clk 0:01:33.7]} 17... Qc7 {[%clk 0:02:09.8]} 18. Qh4 {[%clk 0:01:30.6]}
18... h6 {[%clk 0:02:03]} 19. f4 {[%clk 0:01:25.4]} 19... Qb6 {[%clk 0:01:59.2]}
20. Re2 {[%clk 0:01:24.5]} 20... Ne4 {[%clk 0:01:54]} 21. Bxe4 {[%clk
0:01:20.8]} 21... dxe4 {[%clk 0:01:54.9]} 22. g4 {[%clk 0:01:20.5]} 22... Rfd8
{[%clk 0:01:45.1]} 23. g5 {[%clk 0:01:19.2]} 23... hxg5 {[%clk 0:01:38.3]} 24.
Qxg5 {[%clk 0:01:18.7]} 24... f5 {[%clk 0:00:40.4]} 25. Rg2 {[%clk 0:01:16.2]}
25... Rd7 {[%clk 0:00:38.1]} 26. Rcc2 {[%clk 0:01:12.8]} 26... Qd8 {[%clk
0:00:29]} 27. Qh6 {[%clk 0:01:08.1]} 27... Rf7 {[%clk 0:00:23.3]} 28. Qxe6
{[%clk 0:01:06.7]} 28... Rc6 {[%clk 0:00:20.6]} 29. Qd5 {[%clk 0:01:02.3]} 29...
Rd6 {[%clk 0:00:11.7]} 30. Qe5 {[%clk 0:01:01]} 30... Rh6 {[%clk 0:00:07.9]} 31.
Rg3 {[%clk 0:00:53.9]} 31... Qh4 {[%clk 0:00:07.1]} 32. Rcg2 {[%clk 0:00:52.4]}
32... Rh7 {[%clk 0:00:03.6]} 33. d5 {[%clk 0:00:50.3]} 1-0

[Event "Early-Titled-Tuesday-Blitz-April-23-2024"]
[Site "Chess.com"]
[Date "2024.04.23"]
[Round "9"]
[White "Fy_Rakotomaharo"]
[Black "superchess02"]
[Result "1-0"]
[WhiteElo "2736"]
[BlackElo "2878"]
[TimeControl "180+1"]
[EndTime "9:48:42 PDT"]
[Termination "Fy_Rakotomaharo won by resignation"]

1. e4 {[%clk 0:03:00.9]} 1... c5 {[%clk 0:02:59.9]} 2. a4 {[%clk 0:03:00.8]}
2... Nc6 {[%clk 0:02:58.4]} 3. Bb5 {[%clk 0:03:00.7]} 3... Nf6 {[%clk
0:02:55.9]} 4. d3 {[%clk 0:03:00]} 4... d6 {[%clk 0:02:53.8]} 5. f4 {[%clk
0:02:56.1]} 5... g6 {[%clk 0:02:52.6]} 6. Nf3 {[%clk 0:02:56.1]} 6... Bg7 {[%clk
0:02:53.3]} 7. O-O {[%clk 0:02:56]} 7... O-O {[%clk 0:02:53.7]} 8. Bxc6 {[%clk
0:02:52.5]} 8... bxc6 {[%clk 0:02:54.6]} 9. Qe1 {[%clk 0:02:51.4]} 9... Rb8
{[%clk 0:02:47.2]} 10. Nc3 {[%clk 0:02:42.8]} 10... Nh5 {[%clk 0:01:57.9]} 11.
h3 {[%clk 0:02:27.8]} 11... f5 {[%clk 0:01:46.7]} 12. e5 {[%clk 0:02:19.4]}
12... d5 {[%clk 0:01:36.4]} 13. Qh4 {[%clk 0:02:05.2]} 13... e6 {[%clk
0:01:34.1]} 14. Qf2 {[%clk 0:01:26.4]} 14... Qe7 {[%clk 0:01:19.9]} 15. b3
{[%clk 0:01:23.1]} 15... h6 {[%clk 0:01:06]} 16. g3 {[%clk 0:01:15.5]} 16... g5
{[%clk 0:00:54.5]} 17. Kh2 {[%clk 0:01:09.9]} 17... Ba6 {[%clk 0:00:44.9]} 18.
Ba3 {[%clk 0:01:05.5]} 18... gxf4 {[%clk 0:00:42]} 19. gxf4 {[%clk 0:01:05.3]}
19... Nxf4 {[%clk 0:00:42.4]} 20. Bxc5 {[%clk 0:01:05.3]} 20... Qf7 {[%clk
0:00:41.6]} 21. Rg1 {[%clk 0:00:41.8]} 21... Kh7 {[%clk 0:00:40.7]} 22. Bxf8
{[%clk 0:00:37.5]} 22... Qxf8 {[%clk 0:00:41]} 23. Qh4 {[%clk 0:00:35.8]} 23...
Qb4 {[%clk 0:00:26.9]} 24. Rxg7+ {[%clk 0:00:18.4]} 24... Kxg7 {[%clk
0:00:27.2]} 25. Rg1+ {[%clk 0:00:18.4]} 25... Kh7 {[%clk 0:00:23.1]} 26. Ng5+
{[%clk 0:00:16.9]} 26... Kg8 {[%clk 0:00:20.3]} 27. Nxe6+ {[%clk 0:00:15.5]}
27... Kf7 {[%clk 0:00:20.8]} 28. Qf6+ {[%clk 0:00:15.1]} 1-0

[Event "Early-Titled-Tuesday-Blitz-April-23-2024"]
[Site "Chess.com"]
[Date "2024.04.23"]
[Round "9"]
[White "TanitoluwaAps116"]
[Black "Stanbad1"]
[Result "1-0"]
[WhiteElo "2790"]
[BlackElo "2640"]
[TimeControl "180+1"]
[EndTime "9:48:44 PDT"]
[Termination "TanitoluwaAps116 won by resignation"]

1. e4 {[%clk 0:02:54.8]} 1... e6 {[%clk 0:02:53.3]} 2. d4 {[%clk 0:02:48.3]}
2... d5 {[%clk 0:02:52.9]} 3. exd5 {[%clk 0:02:49.2]} 3... exd5 {[%clk
0:02:52.9]} 4. Nf3 {[%clk 0:02:45.6]} 4... Bd6 {[%clk 0:02:51.2]} 5. c4 {[%clk
0:02:39.3]} 5... dxc4 {[%clk 0:02:50.7]} 6. Bxc4 {[%clk 0:02:40.2]} 6... Nf6
{[%clk 0:02:49.6]} 7. Qe2+ {[%clk 0:02:40.5]} 7... Qe7 {[%clk 0:02:48.9]} 8.
Qxe7+ {[%clk 0:02:41]} 8... Kxe7 {[%clk 0:02:49.3]} 9. Nc3 {[%clk 0:02:40]} 9...
Rd8 {[%clk 0:02:49.6]} 10. O-O {[%clk 0:02:38.7]} 10... h6 {[%clk 0:02:46.3]}
11. Nb5 {[%clk 0:02:35.1]} 11... Bf5 {[%clk 0:02:44.5]} 12. Re1+ {[%clk
0:02:12.5]} 12... Kf8 {[%clk 0:02:43.2]} 13. Ne5 {[%clk 0:02:12.7]} 13... Be6
{[%clk 0:02:37.3]} 14. Bxe6 {[%clk 0:01:36.2]} 14... fxe6 {[%clk 0:02:35.8]} 15.
Nc4 {[%clk 0:01:36.5]} 15... Kf7 {[%clk 0:02:33.8]} 16. Ncxd6+ {[%clk 0:01:22]}
16... cxd6 {[%clk 0:02:32.1]} 17. Nc7 {[%clk 0:01:22.2]} 17... Nc6 {[%clk
0:02:29.9]} 18. Nxa8 {[%clk 0:01:20.3]} 18... Nxd4 {[%clk 0:02:29]} 19. Nc7
{[%clk 0:01:07.6]} 19... Rc8 {[%clk 0:02:24.9]} 20. Nxe6 {[%clk 0:00:49.4]}
20... Nc2 {[%clk 0:02:01]} 21. Bd2 {[%clk 0:00:27.8]} 21... Nxa1 {[%clk
0:01:59.6]} 22. Nd4 {[%clk 0:00:28.3]} 22... Rc4 {[%clk 0:01:02]} 23. Nf5 {[%clk
0:00:26.8]} 23... Rc2 {[%clk 0:00:43.4]} 24. Bc3 {[%clk 0:00:22.9]} 24... Nd5
{[%clk 0:00:40.7]} 25. Nxd6+ {[%clk 0:00:15.9]} 25... Kg6 {[%clk 0:00:40.5]} 26.
Rxa1 {[%clk 0:00:15.6]} 26... Nxc3 {[%clk 0:00:40]} 27. bxc3 {[%clk 0:00:16.5]}
27... Rxc3 {[%clk 0:00:40.7]} 28. Nxb7 {[%clk 0:00:16.5]} 28... Ra3 {[%clk
0:00:41]} 29. Nd6 {[%clk 0:00:15]} 29... Kf6 {[%clk 0:00:40.5]} 30. Nb5 {[%clk
0:00:13.6]} 30... Ra5 {[%clk 0:00:39.9]} 31. a4 {[%clk 0:00:13.5]} 31... a6
{[%clk 0:00:39.6]} 32. Nd4 {[%clk 0:00:14.1]} 32... Rd5 {[%clk 0:00:37.7]} 33.
Nb3 {[%clk 0:00:13.5]} 33... Ke6 {[%clk 0:00:38.3]} 34. Kf1 {[%clk 0:00:13.3]}
34... Kd6 {[%clk 0:00:38.5]} 35. Ke2 {[%clk 0:00:12.9]} 35... Kc6 {[%clk
0:00:38.7]} 36. Rd1 {[%clk 0:00:11.7]} 36... Re5+ {[%clk 0:00:38.7]} 37. Kd3
{[%clk 0:00:11.6]} 37... Rf5 {[%clk 0:00:37.7]} 38. Nd4+ {[%clk 0:00:11.7]} 1-0